bitfinex-derivatives/quotes_SOLF0:USTF0_20250413
["timestamp","ask_amount","ask_price","bid_price","bid_amount"]
[1744525645348,2.0306,129.75,129.68,0.05350598]
[1744525645547,2.0306,129.75,129.7,7.7118]
[1744525645748,7.7099,129.74,129.7,7.7118]
[1744525645949,7.7099,129.74,129.71,0.05586612]
[1744525648448,12.37092396,129.75,129.71,0.05586612]
[1744525648649,14.45612396,129.75,129.71,0.05586612]
[1744525648949,7.7106,129.73,129.71,0.05586612]
[1744525652855,7.711,129.72,129.71,0.05586612]
[1744525653054,29.58,129.74,129.71,0.05586612]
[1744525654056,29.58,129.77,129.71,0.05586612]
[1744525654753,7.7088,129.76,129.72,7.7107]
[1744525654950,29.58,129.77,129.71,0.05586612]
[1744525656852,7.7088,129.76,129.72,7.7107]
[1744525658154,7.7088,129.76,129.73,7.7104]
[1744525658359,7.7088,129.76,129.71,0.05586612]
[1744525658761,37.2883,129.77,129.71,0.05586612]
[1744525658957,29.58,129.77,129.71,0.05586612]
[1744525659257,7.7087,129.76,129.72,7.7107]
[1744525659464,7.7087,129.76,129.71,0.05586612]
[1744525660158,7.7087,129.76,129.72,7.7107]
[1744525660961,37.2883,129.77,129.73,7.7103]
[1744525661349,37.2883,129.77,129.74,0.05083521]
[1744525662860,29.58,129.77,129.74,7.76053521]
[1744525663060,7.7077,129.78,129.74,7.76053521]
[1744525664161,33.7998,129.8,129.75,7.7091]
[1744525664162,7.7071,129.79,129.75,7.7091]
[1744525664350,7.7071,129.79,129.74,0.05083521]
[1744525664860,39.3381,129.8,129.76,7.7086]
[1744525665059,37.2865,129.8,129.76,7.7086]
[1744525665260,29.58,129.84,129.78,7.7073]
[1744525665450,39.92032396,129.84,129.76,29.58]
[1744525665654,39.92032396,129.84,129.8,0.05058154]
[1744525666461,7.7058,129.81,129.8,0.05058154]
[1744525669257,14.29495583,129.81,129.8,0.05058154]
[1744525669856,6.58915583,129.81,129.72,6.58915583]
[1744525670064,6.58915583,129.73,129.69,2.1135]
[1744525670963,6.63973737,129.73,129.7,4.34819836]
[1744525671259,6.63973737,129.73,129.71,7.7116]
[1744525671457,6.63973737,129.73,129.7,4.34819836]
[1744525671863,6.63973737,129.73,129.7,12.06009836]
[1744525672067,6.63973737,129.73,129.7,4.34819836]
[1744525672464,0.05058154,129.73,129.7,4.34819836]
[1744525673265,0.05058154,129.73,129.71,7.7116]
[1744525674167,0.05058154,129.73,129.7,9.90039836]
[1744525674368,0.05058154,129.73,129.7,2.18839836]
[1744525675767,0.05058154,129.73,129.71,7.7112]
[1744525676563,0.05058154,129.73,129.72,7.711]
[1744525684771,7.7071,129.79,129.7,44.45875966]
[1744525684977,7.7071,129.79,129.76,7.7084]
[1744525685580,7.7065,129.8,129.76,7.7084]
[1744525685974,7.7065,129.8,129.77,0.05612763]
[1744525686975,37.6459,129.81,129.77,7.76402763]
[1744525687279,89.98655003,129.84,129.77,29.99612763]
[1744525687280,87.84505003,129.84,129.77,29.99612763]
[1744525687673,87.84505003,129.84,129.77,34.09212763]
[1744525687971,7.7043,129.84,129.8,7.7059]
[1744525688369,7.7043,129.84,129.81,0.0523931]
[1744525689072,7.7036,129.85,129.81,7.7576931]
[1744525689275,46.07367834,129.86,129.81,0.0523931]
[1744525689577,7.7033,129.85,129.81,7.7578931]
[1744525689978,46.07367834,129.86,129.81,0.0523931]
[1744525690180,53.77647834,129.86,129.82,7.7047]
[1744525690478,16.13367834,129.86,129.81,0.0523931]
[1744525690684,16.13367834,129.86,129.84,7.7035]
[1744525690976,16.13367834,129.86,129.8,40.2259613]
[1744525691173,16.13367834,129.86,129.84,0.0504814]
[1744525691371,16.13367834,129.86,129.84,7.7540814]
[1744525691676,264.21414318,129.9,129.84,7.7540814]
[1744525691677,10.3059613,129.9,129.84,0.0504814]
[1744525692783,10.3059613,129.88,129.84,0.0504814]
[1744525692985,7.7028,129.86,129.84,0.0504814]
[1744525693484,7.7033,129.85,129.84,0.0504814]
[1744525693676,14.4808613,129.86,129.77,37.3408]
[1744525693881,10.3059613,129.8,129.72,31.24]
[1744525694083,10.3059613,129.78,129.69,35.499]
[1744525694382,7.7087,129.76,129.72,7.7107]
[1744525694685,0.0504814,129.75,129.73,0.05476149]
[1744525696183,0.0504814,129.75,129.74,7.7098]
[1744525696486,0.0504814,129.75,129.73,31.29476149]
[1744525696884,0.0504814,129.75,129.73,39.00486149]
[1744525697084,0.0504814,129.75,129.73,31.29476149]
[1744525698587,0.0504814,129.75,129.73,39.00496149]
[1744525698780,0.0504814,129.75,129.73,31.29476149]
[1744525699182,0.0504814,129.75,129.73,0.05476149]
[1744525702080,7.7098,129.74,129.73,0.05476149]
[1744525703188,0.0504814,129.75,129.73,0.05476149]
[1744525704184,0.0504814,129.75,129.73,7.76466149]
[1744525704392,0.0504814,129.75,129.73,0.05476149]
[1744525704583,31.24,129.82,129.73,0.05476149]
[1744525704783,31.24,129.82,129.74,31.24]
[1744525704979,10.3059613,129.79,129.7,10.3059613]
[1744525705187,31.24,129.78,129.7,10.3059613]
[1744525705492,31.24,129.78,129.69,35.499]
[1744525705790,10.3059613,129.77,129.72,0.04984463]
[1744525705992,7.7104,129.73,129.72,0.04984463]
[1744525707493,7.71,129.74,129.72,0.04984463]
[1744525707789,10.3059613,129.75,129.72,0.04984463]
[1744525708393,7.7104,129.73,129.72,0.04984463]
[1744525709786,10.3059613,129.73,129.66,38.9545]
[1744525709986,10.3059613,129.71,129.62,6.179]
[1744525710190,10.3059613,129.69,129.62,1.9651]
[1744525710794,7.7147,129.66,129.62,9.6817]
[1744525710997,7.7147,129.66,129.64,0.05349679]
[1744525711188,0.04984463,129.67,129.64,0.05349679]
[1744525711600,0.04984463,129.67,129.65,7.7151]
[1744525711802,0.04984463,129.67,129.64,0.05349679]
[1744525712096,0.04984463,129.67,129.64,7.76879679]
[1744525712302,0.04984463,129.67,129.64,0.05349679]
[1744525713499,41.5659613,129.73,129.65,31.26]
[1744525713893,41.5659613,129.73,129.66,7.7144]
[1744525714501,7.7126,129.7,129.68,0.05815518]
[1744525715502,7.7128,129.69,129.68,0.05815518]
[1744525718204,7.7124,129.7,129.68,0.05815518]
[1744525719299,7.7128,129.69,129.68,0.05815518]
[1744525719507,41.5659613,129.69,129.6,2.0881]
[1744525719699,4.1546,129.68,129.6,2.0881]
[1744525720105,7.7152,129.65,129.61,7.7172]
[1744525720703,0.05355669,129.64,129.62,0.0532427]
[1744525721305,7.76935669,129.64,129.62,0.0532427]
[1744525721508,0.05355669,129.64,129.62,0.0532427]
[1744525722005,7.76955669,129.64,129.62,0.0532427]
[1744525723003,7.7164,129.63,129.62,0.0532427]
[1744525724306,7.76965669,129.64,129.62,0.0532427]
[1744525724602,0.05355669,129.64,129.63,7.7164]
[1744525729311,0.05355669,129.64,129.62,7.7698427]
[1744525729710,0.05355669,129.64,129.62,0.0532427]
[1744525730212,0.05355669,129.64,129.63,7.7164]
[1744525736217,0.05355669,129.64,129.62,7.7699427]
[1744525736713,0.05355669,129.64,129.62,0.0532427]
[1744525737318,0.05355669,129.64,129.63,7.7164]
[1744525739624,37.5878,129.74,129.63,37.76323188]
[1744525739921,6.60323188,129.73,129.67,6.60323188]
[1744525740121,6.60323188,129.73,129.69,7.7125]
[1744525740326,42.06843188,129.74,129.69,6.60323188]
[1744525740515,31.16,129.74,129.69,6.60323188]
[1744525740720,38.8704,129.74,129.7,7.76612512]
[1744525741724,31.16,129.74,129.71,7.7115]
[1744525741928,31.16,129.74,129.7,0.05422512]
[1744525742121,31.16,129.77,129.7,0.05422512]
[1744525742321,14.39510793,129.78,129.7,0.05422512]
[1744525742519,7.709,129.76,129.72,7.711]
[1744525742718,7.709,129.76,129.73,0.05775167]
[1744525744326,7.709,129.76,129.73,7.76815167]
[1744525744530,38.8683,129.77,129.73,7.76815167]
[1744525744729,31.16,129.77,129.73,7.76815167]
[1744525745527,7.7092,129.76,129.73,0.05775167]
[1744525746628,38.8683,129.77,129.73,7.76815167]
[1744525747024,7.7087,129.76,129.73,0.05775167]
[1744525747825,7.7096,129.75,129.73,0.05775167]
[1744525748018,10.30700793,129.76,129.73,0.05775167]
[1744525748628,31.16,129.77,129.73,0.05775167]
[1744525749119,7.7086,129.76,129.73,7.76815167]
[1744525749624,7.7086,129.76,129.73,0.05775167]
[1744525751128,7.7093,129.75,129.73,0.05775167]
[1744525751829,7.7098,129.74,129.73,0.05775167]
[1744525752031,10.30700793,129.76,129.67,31.16]
[1744525752430,7.7106,129.73,129.7,7.7122]
[1744525753034,7.7111,129.72,129.7,0.04927995]
[1744525753431,0.05499643,129.73,129.7,0.04927995]
[1744525753733,7.76579643,129.73,129.7,0.04927995]
[1744525754530,7.7116,129.71,129.7,0.04927995]
[1744525755835,7.713,129.69,129.65,9.7394]
[1744525756031,10.30700793,129.72,129.64,32.3841]
[1744525756232,10.30700793,129.7,129.64,30.28]
[1744525756532,7.7143,129.67,129.63,7.716]
[1744525757038,0.05707748,129.66,129.64,0.05676761]
[1744525757938,0.05707748,129.66,129.51,481.82885073]
[1744525757939,30.28,129.65,129.57,2.1145]
[1744525758137,10.30700793,129.64,129.57,2.1145]
[1744525758540,10.30700793,129.64,129.56,30.28]
[1744525758735,7.7172,129.62,129.57,7.7199]
[1744525759039,0.05179585,129.61,129.59,0.0553422]
[1744525759949,7.76939585,129.61,129.59,0.0553422]
[1744525760754,0.05179585,129.61,129.59,0.0553422]
[1744525763948,7.76949585,129.61,129.59,0.0553422]
[1744525764953,0.05179585,129.61,129.59,0.0553422]
[1744525765454,0.05179585,129.61,129.59,7.7740422]
[1744525767454,0.05179585,129.61,129.59,0.0553422]
[1744525767655,7.76949585,129.61,129.59,0.0553422]
[1744525768951,7.7182,129.6,129.59,0.0553422]
[1744525769151,10.30700793,129.6,129.51,2.1182]
[1744525769356,12.32530793,129.6,129.51,2.1182]
[1744525769558,7.7203,129.57,129.51,2.1182]
[1744525769855,30.3,129.61,129.52,10.30700793]
[1744525770056,30.3,129.61,129.53,4.2103]
[1744525770355,0.05518772,129.58,129.55,0.05352843]
[1744525770951,7.77488772,129.58,129.55,7.77462843]
[1744525772656,7.77488772,129.58,129.55,0.05352843]
[1744525773257,7.77488772,129.58,129.55,7.77462843]
[1744525774662,0.05518772,129.58,129.55,0.05352843]
[1744525775255,0.05518772,129.58,129.56,7.7201]
[1744525778758,0.05518772,129.58,129.57,7.7199]
[1744525779361,0.05518772,129.58,129.56,7.7203]
[1744525780962,0.05518772,129.58,129.57,7.7199]
[1744525782159,36.44939157,129.64,129.57,6.60939157]
[1744525782358,36.44939157,129.64,129.57,36.44939157]
[1744525782558,7.7168,129.63,129.59,7.7182]
[1744525782759,7.7168,129.63,129.57,36.44939157]
[1744525783160,0.05567315,129.61,129.6,7.7181]
[1744525791872,404.16164023,129.68,129.63,7.716]
[1744525792170,7.7143,129.67,129.63,7.716]
[1744525792871,0.05203349,129.66,129.64,0.0542922]
[1744525793074,0.05203349,129.66,129.64,7.7699922]
[1744525794577,7.76673349,129.66,129.64,0.0542922]
[1744525797075,0.05203349,129.66,129.64,0.0542922]
[1744525797275,0.05203349,129.66,129.64,7.7699922]
[1744525797574,0.05203349,129.66,129.64,0.0542922]
[1744525798678,7.7152,129.65,129.64,0.0542922]
[1744525799580,7.7166,129.63,129.58,4.224]
[1744525799774,10.32164023,129.64,129.58,4.224]
[1744525799975,10.32164023,129.64,129.58,9.8892]
[1744525800176,7.7179,129.61,129.58,2.1701]
[1744525800680,7.77115655,129.61,129.58,0.05330997]
[1744525800980,7.7185,129.6,129.58,0.05330997]
[1744525801779,7.77105655,129.61,129.58,0.05330997]
[1744525801984,0.05325655,129.61,129.58,0.05330997]
[1744525802183,0.05325655,129.61,129.58,4.27330997]
[1744525802479,37.5548,129.66,129.59,10.32164023]
[1744525802677,29.84,129.66,129.6,29.84]
[1744525802977,10.32164023,129.68,129.6,29.84]
[1744525803179,29.84,129.69,129.6,29.84]
[1744525803380,0.05020514,129.66,129.63,0.0514874]
[1744525804083,0.05020514,129.66,129.63,7.7674874]
[1744525806081,0.05020514,129.66,129.63,0.0514874]
[1744525806377,0.05020514,129.66,129.63,29.8914874]
[1744525806684,0.05020514,129.66,129.64,7.7153]
[1744525808985,0.05020514,129.66,129.65,7.7152]
[1744525810673,0.05020514,129.66,129.64,14.31617552]
[1744525812083,0.05020514,129.66,129.64,7.7155]
[1744525813283,6.60067552,129.65,129.63,0.0514874]
[1744525813584,6.60067552,129.65,129.55,6.2968]
[1744525813782,14.31907552,129.6,129.56,7.7202]
[1744525814087,7.7184,129.6,129.56,7.7202]
[1744525814284,6.60067552,129.59,129.56,7.7202]
[1744525814579,14.31957552,129.59,129.56,7.77535064]
[1744525814784,14.37632254,129.59,129.56,7.77535064]
[1744525815376,0.05674702,129.59,129.57,6.60067552]
[1744525815586,6.60067552,129.65,129.57,35.82067552]
[1744525815787,35.82067552,129.67,129.6,6.60067552]
[1744525816081,6.60067552,129.68,129.62,6.60067552]
[1744525816285,6.60067552,129.69,129.62,6.60067552]
[1744525816485,7.7139,129.68,129.64,7.7154]
[1744525816691,0.05625318,129.67,129.64,7.77192122]
[1744525816880,7.77025318,129.67,129.64,7.77192122]
[1744525818186,0.05625318,129.67,129.64,0.05652122]
[1744525820388,29.22,129.73,129.64,10.37053878]
[1744525820693,39.53401756,129.73,129.64,10.31401756]
[1744525821491,7.76294681,129.7,129.67,0.05837327]
[1744525821692,0.05034681,129.7,129.67,0.05837327]
[1744525822087,7.76284681,129.7,129.67,0.05837327]
[1744525822797,0.05034681,129.7,129.67,0.05837327]
[1744525823283,0.05034681,129.7,129.67,7.77197327]
[1744525823487,0.05034681,129.7,129.67,0.05837327]
[1744525823985,0.05034681,129.7,129.68,7.7131]
[1744525824186,0.05034681,129.7,129.67,0.05837327]
[1744525825793,0.05034681,129.7,129.67,7.77227327]
[1744525826294,0.05034681,129.7,129.67,0.05837327]
[1744525826494,0.05034681,129.7,129.68,10.31401756]
[1744525826696,36.9287,129.76,129.69,31.2726]
[1744525826896,29.22,129.76,129.7,10.31401756]
[1744525827092,31.2317,129.79,129.7,10.31401756]
[1744525827292,7.7084,129.77,129.73,7.7101]
[1744525827895,7.7084,129.77,129.74,0.05253409]
[1744525828096,7.7077,129.78,129.74,7.76203409]
[1744525828897,7.7082,129.77,129.74,7.76203409]
[1744525830397,29.22,129.79,129.74,0.05253409]
[1744525831692,29.22,129.79,129.74,7.76203409]
[1744525831999,29.22,129.79,129.74,0.05253409]
[1744525833199,7.7085,129.77,129.74,0.05253409]
[1744525833995,29.22,129.79,129.74,0.05253409]
[1744525834200,10.31401756,129.78,129.74,0.05253409]
[1744525834600,7.7092,129.75,129.74,0.05253409]
[1744525835900,10.31401756,129.81,129.74,0.05253409]
[1744525836101,39.51401756,129.81,129.72,29.2]
[1744525836301,39.51401756,129.81,129.76,0.05543332]
[1744525836501,7.708,129.78,129.76,0.05543332]
[1744525837502,39.51401756,129.81,129.76,0.05543332]
[1744525837503,29.2,129.81,129.76,0.05543332]
[1744525837703,29.2,129.84,129.76,0.05543332]
[1744525837901,29.2,129.84,129.76,2.1611]
[1744525838096,7.7054,129.82,129.79,0.05608768]
[1744525839702,7.7057,129.81,129.79,0.05608768]
[1744525840999,7.7053,129.82,129.79,7.76288768]
[1744525841199,29.2,129.84,129.79,0.05608768]
[1744525841602,2.0837,129.86,129.79,0.05608768]
[1744525842907,7.7034,129.85,129.81,7.7056]
[1744525843302,7.7034,129.85,129.82,0.05641571]
[1744525845207,29.2,129.87,129.83,7.7041]
[1744525845609,29.2,129.87,129.82,0.05641571]
[1744525845804,7.7034,129.85,129.82,0.05641571]
[1744525846003,29.2,129.87,129.82,0.05641571]
[1744525846307,7.7031,129.86,129.82,7.76101571]
[1744525846508,7.7031,129.86,129.82,0.05641571]
[1744525846802,2.1622,129.89,129.82,0.05641571]
[1744525846996,7.7017,129.88,129.84,7.7038]
[1744525847398,2.1622,129.89,129.85,0.04902322]
[1744525847596,2.1622,129.89,129.85,7.75202322]
[1744525847597,9.8635,129.89,129.85,7.75202322]
[1744525848606,7.7017,129.88,129.85,7.75202322]
[1744525849508,9.8634,129.89,129.85,7.75202322]
[1744525850101,2.1622,129.89,129.85,0.04902322]
[1744525850709,7.7027,129.86,129.85,0.04902322]
[1744525851807,29.54,129.87,129.85,0.04902322]
[1744525853210,29.54,129.87,129.85,7.75232322]
[1744525853509,7.7012,129.89,129.85,7.75232322]
[1744525856105,7.7015,129.88,129.85,7.75232322]
[1744525856410,7.7015,129.88,129.85,0.04902322]
[1744525860007,29.54,129.87,129.85,0.04902322]
[1744525860211,29.54,129.87,129.78,39.85401756]
[1744525860413,7.7042,129.84,129.8,7.706]
[1744525860711,31.5938,129.87,129.78,39.85401756]
[1744525861213,31.5938,129.87,129.82,0.05231076]
[1744525861214,0.05107831,129.84,129.82,0.05231076]
[1744525862815,7.75527831,129.84,129.82,0.05231076]
[1744525863008,0.05107831,129.84,129.82,0.05231076]
[1744525863509,7.7045,129.83,129.82,0.05231076]
[1744525863705,39.90509587,129.84,129.75,33.7305]
[1744525863911,39.85401756,129.84,129.77,7.7077]
[1744525864114,39.85401756,129.84,129.75,33.7305]
[1744525864305,39.85401756,129.84,129.75,31.6379]
[1744525864509,2.0365,129.83,129.76,7.7085]
[1744525864914,0.05667692,129.81,129.78,0.0551166]
[1744525865114,7.7066,129.8,129.78,0.0551166]
[1744525865717,7.7069,129.79,129.78,0.0551166]
[1744525866018,0.05667692,129.81,129.78,0.0551166]
[1744525866318,7.7065,129.8,129.78,0.0551166]
[1744525866715,0.05667692,129.81,129.78,0.0551166]
[1744525866916,7.7069,129.79,129.78,0.0551166]
[1744525867520,7.7094,129.75,129.72,7.7107]
[1744525868526,7.76603582,129.75,129.72,0.05818568]
[1744525869627,10.37065338,129.75,129.67,2.0944]
[1744525869827,10.31401756,129.75,129.67,31.6344]
[1744525870024,7.7108,129.73,129.69,7.7125]
[1744525870730,7.711,129.72,129.69,7.7125]
[1744525871029,0.05922067,129.72,129.7,7.76197348]
[1744525873429,0.05922067,129.72,129.7,0.04987348]
[1744525873727,7.77032067,129.72,129.7,0.04987348]
[1744525874630,0.05922067,129.72,129.7,0.04987348]
[1744525875633,7.77022067,129.72,129.7,0.04987348]
[1744525876327,0.05922067,129.72,129.7,0.04987348]
[1744525878327,0.05922067,129.72,129.7,7.76187348]
[1744525878732,0.05922067,129.72,129.7,0.04987348]
[1744525878932,7.77072067,129.72,129.7,0.04987348]
[1744525880533,0.05922067,129.72,129.7,0.04987348]
[1744525882636,0.05922067,129.72,129.7,7.76207348]
[1744525884237,29.54,129.76,129.7,39.80389104]
[1744525884732,37.249,129.76,129.72,7.7105]
[1744525885238,37.249,129.76,129.7,39.75401756]
[1744525885438,0.05257468,129.75,129.73,0.0565672]
[1744525887336,0.05257468,129.75,129.73,7.7669672]
[1744525887633,7.76197468,129.75,129.73,0.0565672]
[1744525887838,0.05257468,129.75,129.73,0.0565672]
[1744525888038,7.7098,129.74,129.73,0.0565672]
[1744525891738,7.7,129.74,129.6,39.75401756]
[1744525891938,10.31401756,129.7,129.61,6.1947]
[1744525892138,7.7137,129.68,129.63,7.7162]
[1744525892530,29.44,129.69,129.61,6.1947]
[1744525892839,4.1265,129.73,129.64,10.3701656]
[1744525892840,0.05238437,129.66,129.64,10.3701656]
[1744525893039,10.31401756,129.74,129.64,39.75401756]
[1744525893239,29.44,129.73,129.64,39.75401756]
[1744525893439,7.7115,129.72,129.64,39.75401756]
[1744525893741,7.7115,129.72,129.66,10.31401756]
[1744525893932,7.7115,129.72,129.67,35.6347]
[1744525894137,0.05298444,129.7,129.68,0.05346817]
[1744525894741,0.05298444,129.7,129.68,7.76646817]
[1744525894938,0.05298444,129.7,129.68,0.05346817]
[1744525895442,7.7128,129.69,129.68,0.05346817]
[1744525903446,39.807002,129.7,129.61,29.44]
[1744525903749,39.75401756,129.7,129.61,29.44]
[1744525904350,7.76581027,129.67,129.64,0.05385099]
[1744525905050,7.7147,129.66,129.64,0.05385099]
[1744525906845,7.7152,129.65,129.64,0.05385099]
[1744525907044,39.69401756,129.66,129.59,2.0912]
[1744525907245,10.31401756,129.64,129.59,2.0912]
[1744525907444,10.31401756,129.64,129.56,29.38]
[1744525907648,29.38,129.63,129.56,29.38]
[1744525908150,0.05281326,129.61,129.58,0.05492485]
[1744525909352,0.05281326,129.61,129.58,7.77392485]
[1744525911554,0.05281326,129.61,129.59,7.7186]
[1744525912856,2.0002,129.67,129.6,7.7182]
[1744525912857,10.31401756,129.66,129.6,7.7182]
[1744525913060,10.31401756,129.66,129.59,4.0702]
[1744525913061,29.38,129.66,129.59,4.0702]
[1744525913356,29.38,129.66,129.59,33.4502]
[1744525913750,10.31401756,129.62,129.55,29.38]
[1744525914157,7.77522223,129.6,129.57,0.05788786]
[1744525915257,7.77522223,129.6,129.57,7.77778786]
[1744525915861,0.05672223,129.6,129.57,7.77778786]
[1744525916459,7.77532223,129.6,129.57,7.77778786]
[1744525919259,7.77532223,129.6,129.57,0.05788786]
[1744525919957,7.7191,129.59,129.57,0.05788786]
[1744525921263,7.77522223,129.6,129.57,0.05788786]
[1744525921562,0.05672223,129.6,129.57,0.05788786]
[1744525921762,7.77502223,129.6,129.57,0.05788786]
[1744525921962,0.05672223,129.6,129.58,7.7193]
[1744525922162,10.31401756,129.66,129.58,29.4]
[1744525922360,29.4,129.66,129.58,43.91281756]
[1744525922560,7.716,129.64,129.6,7.7179]
[1744525922762,7.716,129.64,129.58,43.91281756]
[1744525922763,10.31401756,129.64,129.58,33.5988]
[1744525922963,10.31401756,129.64,129.58,31.5271]
[1744525923262,7.7179,129.61,129.6,0.05219032]
[1744525924068,10.36484175,129.62,129.5,10.31401756]
[1744525924262,10.31401756,129.57,129.5,2.0214]
[1744525924464,39.71401756,129.57,129.5,2.0214]
[1744525924763,29.4,129.57,129.5,2.0214]
[1744525924964,29.4,129.57,129.5,31.4214]
[1744525925164,0.04989013,129.55,129.52,0.05389529]
[1744525926561,0.04989013,129.55,129.53,7.722]
[1744525926860,0.04989013,129.55,129.52,0.05389529]
[1744525927063,0.04989013,129.55,129.53,29.4]
[1744525927264,0.04989013,129.55,129.53,31.4713]
[1744525927463,0.04989013,129.55,129.54,7.7217]
[1744525927865,7.7192,129.59,129.53,33.589]
[1744525928167,7.7192,129.59,129.55,7.7208]
[1744525928967,0.05029453,129.58,129.56,0.05495234]
[1744525931267,0.05029453,129.58,129.57,7.7199]
[1744525933974,380.53240817,129.66,129.56,0.05495234]
[1744525933975,2.0211,129.64,129.58,7.7189]
[1744525934473,31.279,129.65,129.58,7.7189]
[1744525934774,7.7173,129.62,129.58,7.7189]
[1744525935074,0.05064398,129.61,129.59,0.05230869]
[1744525935474,0.05064398,129.61,129.59,7.77090869]
[1744525935875,0.05064398,129.61,129.59,0.05230869]
[1744525936576,7.76854398,129.61,129.59,0.05230869]
[1744525939979,0.05064398,129.61,129.59,7.77100869]
[1744525940179,0.05064398,129.61,129.59,0.05230869]
[1744525941076,0.05064398,129.61,129.59,7.77070869]
[1744525941483,0.05064398,129.61,129.59,0.05230869]
[1744525941780,0.05064398,129.61,129.6,7.7182]
[1744525942484,29.24,129.65,129.62,7.7165]
[1744525942685,640.6,129.68,129.62,7.7165]
[1744525942881,7.7149,129.66,129.62,7.7165]
[1744525943177,29.24,129.68,129.63,7.7163]
[1744525943586,0.05368556,129.67,129.64,0.05189508]
[1744525944585,7.715,129.66,129.64,0.05189508]
[1744525945283,7.7152,129.65,129.64,0.05189508]
[1744525947588,7.7148,129.66,129.64,0.05189508]
[1744525947885,0.05368556,129.67,129.64,0.05189508]
[1744525948484,7.76778556,129.67,129.64,7.76719508]
[1744525948676,0.05368556,129.67,129.64,0.05189508]
[1744525949081,0.05368556,129.67,129.66,7.7146]
[1744525950383,111.2731431,129.73,129.65,29.24]
[1744525950682,7.7121,129.71,129.65,29.24]
[1744525950883,10.32177141,129.71,129.65,36.9551]
[1744525951386,7.7131,129.69,129.67,0.05594633]
[1744525954588,7.7134,129.68,129.67,0.05594633]
[1744525954890,10.32177141,129.71,129.67,0.05594633]
[1744525955289,7.7132,129.69,129.67,0.05594633]
[1744525956590,7.7134,129.68,129.67,0.05594633]
[1744525956790,10.32177141,129.71,129.67,0.05594633]
[1744525957790,7.7131,129.69,129.67,0.05594633]
[1744525959085,10.32177141,129.71,129.67,0.05594633]
[1744525959290,29.24,129.73,129.67,0.05594633]
[1744525959690,7.7114,129.72,129.68,7.7128]
[1744525959887,7.7114,129.72,129.67,0.05594633]
[1744525959888,29.24,129.73,129.67,0.05594633]
[1744525960092,29.24,129.73,129.67,10.37771774]
[1744525960288,7.7101,129.74,129.7,7.712]
[1744525960488,29.22,129.76,129.68,33.335]
[1744525960690,29.22,129.76,129.71,0.05239654]
[1744525961188,36.9289,129.76,129.72,7.711]
[1744525961398,29.22,129.76,129.71,0.05239654]
[1744525961596,29.22,129.76,129.71,29.27239654]
[1744525961793,7.7092,129.75,129.72,7.7108]
[1744525962595,36.9289,129.76,129.72,7.7108]
[1744525962895,36.9289,129.76,129.71,29.27239654]
[1744525962896,36.9289,129.76,129.73,7.7104]
[1744525963098,29.22,129.76,129.71,29.27239654]
[1744525963297,7.7082,129.77,129.71,29.27239654]
[1744525963597,29.22,129.79,129.71,39.59416795]
[1744525963798,29.22,129.79,129.71,39.54177141]
[1744525963999,29.22,129.79,129.74,0.05019922]
[1744525964494,29.22,129.79,129.74,29.27019922]
[1744525964698,7.7066,129.8,129.76,7.7083]
[1744525964897,29.22,129.82,129.74,31.3526]
[1744525965097,29.22,129.82,129.77,0.05721846]
[1744525965293,7.706,129.81,129.77,7.76471846]
[1744525965600,29.22,129.82,129.77,7.76471846]
[1744525965799,29.22,129.82,129.77,0.05721846]
[1744525966800,7.7059,129.81,129.77,0.05721846]
[1744525968102,7.7046,129.83,129.77,29.25721846]
[1744525968400,7.7046,129.83,129.77,39.57898987]
[1744525968698,7.7045,129.83,129.78,7.7073]
[1744525969003,7.7045,129.83,129.77,29.25721846]
[1744525969202,29.2,129.86,129.79,7.7064]
[1744525969203,7.7041,129.84,129.79,7.7064]
[1744525969604,10.32177141,129.85,129.8,0.05640604]
[1744525970003,7.7049,129.83,129.8,0.05640604]
[1744525971405,7.7055,129.82,129.8,0.05640604]
[1744525972001,7.7057,129.81,129.8,0.05640604]
[1744525972502,7.7053,129.82,129.8,0.05640604]
[1744525972703,29.2,129.83,129.8,0.05640604]
[1744525973003,40.78177141,129.86,129.8,0.05640604]
[1744525973206,7.7043,129.84,129.81,7.7057]
[1744525973405,7.7043,129.84,129.8,0.05640604]
[1744525973807,7.7043,129.84,129.8,7.76240604]
[1744525974002,7.7045,129.83,129.8,0.05640604]
[1744525976714,10.32177141,129.84,129.8,0.05640604]